[Event "Late-Titled-Tuesday-Blitz-February-20-2024"]
[Site "Chess.com"]
[Date "2024.02.20"]
[Round "10"]
[White "MusicCityMaster"]
[Black "Goryachkina"]
[Result "1-0"]
[WhiteElo "2577"]
[BlackElo "2694"]
[TimeControl "180+1"]
[EndTime "15:54:58 PST"]
[Termination "MusicCityMaster won by resignation"]

1. d4 {[%clk 0:03:00.9]} 1... Nf6 {[%clk 0:02:59.7]} 2. c4 {[%clk 0:03:01.1]}
2... e6 {[%clk 0:03:00.2]} 3. Nf3 {[%clk 0:03:00.8]} 3... d5 {[%clk 0:03:00.4]}
4. Nc3 {[%clk 0:02:58.8]} 4... dxc4 {[%clk 0:03:00.5]} 5. e4 {[%clk 0:02:58.4]}
5... b5 {[%clk 0:03:00.3]} 6. a4 {[%clk 0:02:58.1]} 6... b4 {[%clk 0:02:53.4]}
7. e5 {[%clk 0:02:49.4]} 7... Nd5 {[%clk 0:02:35.9]} 8. Ne4 {[%clk 0:02:47.4]}
8... Ba6 {[%clk 0:02:28.8]} 9. Be2 {[%clk 0:02:34.1]} 9... Nd7 {[%clk
0:02:24.2]} 10. O-O {[%clk 0:02:32.6]} 10... Be7 {[%clk 0:02:23.1]} 11. b3
{[%clk 0:02:23.2]} 11... O-O {[%clk 0:01:45.9]} 12. bxc4 {[%clk 0:02:22.5]}
12... Nc3 {[%clk 0:01:27.9]} 13. Nxc3 {[%clk 0:02:21.1]} 13... bxc3 {[%clk
0:01:28.3]} 14. Qc2 {[%clk 0:02:04.3]} 14... c5 {[%clk 0:01:26.4]} 15. d5 {[%clk
0:01:53.2]} 15... exd5 {[%clk 0:01:13.9]} 16. cxd5 {[%clk 0:01:54.1]} 16... Bxe2
{[%clk 0:01:13.7]} 17. Qxe2 {[%clk 0:01:55]} 17... Re8 {[%clk 0:01:14]} 18. Qd3
{[%clk 0:01:36.4]} 18... Qa5 {[%clk 0:00:57.1]} 19. Qf5 {[%clk 0:01:05.5]} 19...
Nf8 {[%clk 0:00:38.1]} 20. Be3 {[%clk 0:00:58.6]} 20... g6 {[%clk 0:00:29.5]}
21. Qc2 {[%clk 0:00:44.1]} 21... Nd7 {[%clk 0:00:25.8]} 22. h4 {[%clk
0:00:38.8]} 22... Bf8 {[%clk 0:00:25.4]} 23. Bf4 {[%clk 0:00:33.5]} 23... Nb6
{[%clk 0:00:20.3]} 24. Rfd1 {[%clk 0:00:27]} 24... Rad8 {[%clk 0:00:20]} 25. d6
{[%clk 0:00:20.1]} 25... Nd7 {[%clk 0:00:19.5]} 26. h5 {[%clk 0:00:17.7]} 26...
Bg7 {[%clk 0:00:19.4]} 27. hxg6 {[%clk 0:00:16.6]} 27... hxg6 {[%clk 0:00:19.1]}
28. Re1 {[%clk 0:00:17.2]} 28... Rb8 {[%clk 0:00:18.2]} 29. Qe4 {[%clk 0:00:13]}
29... Rb4 {[%clk 0:00:17.6]} 30. Qe3 {[%clk 0:00:11.6]} 30... c2 {[%clk
0:00:15.7]} 31. Ng5 {[%clk 0:00:08.9]} 31... Nxe5 {[%clk 0:00:13]} 32. Bxe5
{[%clk 0:00:04.8]} 32... Rxe5 {[%clk 0:00:12.4]} 33. Qh3 {[%clk 0:00:04.8]}
33... Rxg5 {[%clk 0:00:11.4]} 34. Re8+ {[%clk 0:00:02.5]} 34... Bf8 {[%clk
0:00:11.3]} 35. Rxf8+ {[%clk 0:00:03.3]} 1-0

[Event "Late-Titled-Tuesday-Blitz-February-20-2024"]
[Site "Chess.com"]
[Date "2024.02.20"]
[Round "10"]
[White "Inepton_Fermion"]
[Black "Zq1"]
[Result "0-1"]
[WhiteElo "2396"]
[BlackElo "2502"]
[TimeControl "180+1"]
[EndTime "15:55:03 PST"]
[Termination "Zq1 won on time"]

1. Nf3 {[%clk 0:02:07.6]} 1... Nf6 {[%clk 0:02:58]} 2. b3 {[%clk 0:02:08]} 2...
g6 {[%clk 0:02:57.2]} 3. Bb2 {[%clk 0:02:08.9]} 3... Bg7 {[%clk 0:02:57.2]} 4.
g3 {[%clk 0:02:09.8]} 4... d6 {[%clk 0:02:57.1]} 5. d4 {[%clk 0:02:09.3]} 5...
c5 {[%clk 0:02:50.3]} 6. Bg2 {[%clk 0:02:07.9]} 6... cxd4 {[%clk 0:02:49.8]} 7.
Nxd4 {[%clk 0:02:07.9]} 7... O-O {[%clk 0:02:48.9]} 8. O-O {[%clk 0:02:07.5]}
8... a6 {[%clk 0:02:48.7]} 9. c4 {[%clk 0:02:07.6]} 9... Qc7 {[%clk 0:02:41.1]}
10. Nc3 {[%clk 0:02:07]} 10... Nc6 {[%clk 0:02:41.1]} 11. Rc1 {[%clk 0:01:55.7]}
11... Nxd4 {[%clk 0:02:40.6]} 12. Qxd4 {[%clk 0:01:56.6]} 12... Be6 {[%clk
0:02:35.6]} 13. Nd5 {[%clk 0:01:55.3]} 13... Bxd5 {[%clk 0:02:34.8]} 14. cxd5
{[%clk 0:01:55.1]} 14... Qa5 {[%clk 0:02:23.9]} 15. Qc3 {[%clk 0:01:18.2]} 15...
Qxc3 {[%clk 0:02:15.7]} 16. Bxc3 {[%clk 0:01:19.1]} 16... Rfc8 {[%clk
0:02:11.6]} 17. Bd4 {[%clk 0:01:15.9]} 17... Ne8 {[%clk 0:01:52.8]} 18. Bxg7
{[%clk 0:01:13]} 18... Kxg7 {[%clk 0:01:51.6]} 19. Bh3 {[%clk 0:01:13.3]} 19...
f5 {[%clk 0:01:40.8]} 20. e4 {[%clk 0:00:56]} 20... Kf6 {[%clk 0:01:35]} 21.
exf5 {[%clk 0:00:50.4]} 21... gxf5 {[%clk 0:01:30.9]} 22. Rfe1 {[%clk
0:00:50.4]} 22... Nc7 {[%clk 0:01:08]} 23. Bg2 {[%clk 0:00:32.3]} 23... h5
{[%clk 0:00:56.2]} 24. Rc4 {[%clk 0:00:31.9]} 24... b5 {[%clk 0:00:41.2]} 25.
Rc6 {[%clk 0:00:25.7]} 25... Ne8 {[%clk 0:00:34.2]} 26. Re6+ {[%clk 0:00:24.2]}
26... Kf7 {[%clk 0:00:32.7]} 27. Rh6 {[%clk 0:00:14.5]} 27... Ng7 {[%clk
0:00:32.5]} 28. Bf3 {[%clk 0:00:07.6]} 28... Rxc6 {[%clk 0:00:31.5]} 29. dxc6
{[%clk 0:00:08.5]} 29... Rc8 {[%clk 0:00:31.3]} 30. Bxh5+ {[%clk 0:00:03.7]}
30... Nxh5 {[%clk 0:00:30.3]} 31. Rxh5 {[%clk 0:00:04.6]} 31... Kg6 {[%clk
0:00:29.7]} 32. Rh4 {[%clk 0:00:02.5]} 32... Rxc6 {[%clk 0:00:29.4]} 33. Kg2
{[%clk 0:00:02.2]} 33... e5 {[%clk 0:00:25.8]} 34. a4 {[%clk 0:00:02]} 34... e4
{[%clk 0:00:22.7]} 35. axb5 {[%clk 0:00:02.2]} 35... axb5 {[%clk 0:00:22.1]} 36.
g4 {[%clk 0:00:02.8]} 36... Kg5 {[%clk 0:00:16.8]} 37. Rh8 {[%clk 0:00:01.9]}
37... Kxg4 {[%clk 0:00:15.7]} 38. Rg8+ {[%clk 0:00:01.8]} 38... Kf4 {[%clk
0:00:15.4]} 39. h4 {[%clk 0:00:01.5]} 39... Rc7 {[%clk 0:00:15.2]} 40. Kh3
{[%clk 0:00:01.2]} 40... d5 {[%clk 0:00:14.9]} 41. Rg7 {[%clk 0:00:01.2]} 41...
Rxg7 {[%clk 0:00:13.9]} 0-1

[Event "Late-Titled-Tuesday-Blitz-February-20-2024"]
[Site "Chess.com"]
[Date "2024.02.20"]
[Round "10"]
[White "Teidi96"]
[Black "ArchibaldCerveza29"]
[Result "1-0"]
[WhiteElo "2276"]
[BlackElo "2416"]
[TimeControl "180+1"]
[EndTime "15:55:05 PST"]
[Termination "Teidi96 won by resignation"]

1. e4 {[%clk 0:03:00.4]} 1... c5 {[%clk 0:02:59.4]} 2. c3 {[%clk 0:03:00.3]}
2... d6 {[%clk 0:02:56.9]} 3. d4 {[%clk 0:03:00.2]} 3... Nf6 {[%clk 0:02:56.7]}
4. Bd3 {[%clk 0:02:57.1]} 4... g6 {[%clk 0:02:55.4]} 5. Nf3 {[%clk 0:02:55.2]}
5... Nc6 {[%clk 0:02:54.1]} 6. O-O {[%clk 0:02:55.1]} 6... Bg7 {[%clk
0:02:53.5]} 7. h3 {[%clk 0:02:55.4]} 7... O-O {[%clk 0:02:53.2]} 8. Be3 {[%clk
0:02:50.9]} 8... cxd4 {[%clk 0:02:51.8]} 9. cxd4 {[%clk 0:02:50.8]} 9... e5
{[%clk 0:02:52.1]} 10. d5 {[%clk 0:02:50.7]} 10... Nb4 {[%clk 0:02:49.7]} 11.
Nc3 {[%clk 0:02:51.1]} 11... Nxd3 {[%clk 0:02:49.1]} 12. Qxd3 {[%clk 0:02:51.8]}
12... Nd7 {[%clk 0:02:45.4]} 13. Nd2 {[%clk 0:02:49.2]} 13... f5 {[%clk
0:02:41.3]} 14. f3 {[%clk 0:02:49.5]} 14... Nf6 {[%clk 0:02:38.7]} 15. Rac1
{[%clk 0:02:43.7]} 15... a6 {[%clk 0:02:09.3]} 16. Na4 {[%clk 0:02:37.7]} 16...
b5 {[%clk 0:02:06.9]} 17. Nb6 {[%clk 0:02:37]} 17... Rb8 {[%clk 0:02:05.9]} 18.
Nxc8 {[%clk 0:02:37.2]} 18... Rxc8 {[%clk 0:02:06.8]} 19. Nb3 {[%clk 0:02:31.9]}
19... Qd7 {[%clk 0:02:02.6]} 20. Na5 {[%clk 0:02:30.3]} 20... h6 {[%clk
0:01:56.8]} 21. Rc6 {[%clk 0:02:30.1]} 21... Rxc6 {[%clk 0:01:53.8]} 22. dxc6
{[%clk 0:02:20.7]} 22... Qc7 {[%clk 0:01:53.3]} 23. b4 {[%clk 0:02:21.4]} 23...
Rd8 {[%clk 0:01:17.5]} 24. exf5 {[%clk 0:02:19.2]} 24... g5 {[%clk 0:01:04.5]}
25. h4 {[%clk 0:01:51.4]} 25... gxh4 {[%clk 0:01:00]} 26. Bf2 {[%clk 0:01:51.1]}
26... h3 {[%clk 0:00:54.2]} 27. g4 {[%clk 0:01:49.5]} 27... d5 {[%clk
0:00:51.8]} 28. Bg3 {[%clk 0:01:34.9]} 28... Qb6+ {[%clk 0:00:39.8]} 29. Kh2
{[%clk 0:01:33.9]} 29... e4 {[%clk 0:00:39.7]} 30. fxe4 {[%clk 0:01:30.7]} 30...
dxe4 {[%clk 0:00:40.6]} 31. Qb3+ {[%clk 0:01:30.6]} 31... Kh8 {[%clk 0:00:39.8]}
32. Rd1 {[%clk 0:01:26.7]} 32... Nxg4+ {[%clk 0:00:36.6]} 33. Kxh3 {[%clk
0:01:27.2]} 33... h5 {[%clk 0:00:21]} 34. Rxd8+ {[%clk 0:01:17.7]} 34... Qxd8
{[%clk 0:00:21.9]} 35. Qf7 {[%clk 0:01:15.9]} 35... Qd1 {[%clk 0:00:18.8]} 36.
Qxh5+ {[%clk 0:01:15.8]} 36... Kg8 {[%clk 0:00:18.9]} 37. Qxg4 {[%clk
0:00:48.9]} 37... Qh1+ {[%clk 0:00:18.3]} 38. Bh2 {[%clk 0:00:49.4]} 38... Qf1+
{[%clk 0:00:19.2]} 39. Kh4 {[%clk 0:00:49.3]} 39... Qf2+ {[%clk 0:00:19.1]} 40.
Bg3 {[%clk 0:00:47]} 40... Qg1 {[%clk 0:00:15.9]} 41. c7 {[%clk 0:00:38.5]}
41... Kh7 {[%clk 0:00:11.5]} 42. Qh5+ {[%clk 0:00:33.1]} 42... Bh6 {[%clk
0:00:10.5]} 43. Qf7+ {[%clk 0:00:31.7]} 43... Bg7 {[%clk 0:00:09.8]} 44. Qh5+
{[%clk 0:00:31.7]} 44... Bh6 {[%clk 0:00:08.6]} 45. Qg6+ {[%clk 0:00:31.8]} 1-0

[Event "Late-Titled-Tuesday-Blitz-February-20-2024"]
[Site "Chess.com"]
[Date "2024.02.20"]
[Round "10"]
[White "sergiochess83"]
[Black "Njal28"]
[Result "0-1"]
[WhiteElo "2911"]
[BlackElo "2997"]
[TimeControl "180+1"]
[EndTime "15:55:11 PST"]
[Termination "Njal28 won on time"]

1. e4 {[%clk 0:02:53.1]} 1... e5 {[%clk 0:03:00.2]} 2. Nf3 {[%clk 0:02:52.1]}
2... Nc6 {[%clk 0:03:00.8]} 3. Bb5 {[%clk 0:02:51.6]} 3... a6 {[%clk 0:03:00.7]}
4. Ba4 {[%clk 0:02:51.9]} 4... d6 {[%clk 0:03:01.2]} 5. O-O {[%clk 0:02:51]}
5... Bd7 {[%clk 0:03:00.7]} 6. c3 {[%clk 0:02:50.7]} 6... Nge7 {[%clk
0:03:00.5]} 7. d4 {[%clk 0:02:50.8]} 7... Ng6 {[%clk 0:03:01.2]} 8. Re1 {[%clk
0:02:50.9]} 8... Be7 {[%clk 0:03:01.6]} 9. Be3 {[%clk 0:02:45.6]} 9... O-O
{[%clk 0:03:01.8]} 10. Nbd2 {[%clk 0:02:45.9]} 10... exd4 {[%clk 0:03:02.1]} 11.
cxd4 {[%clk 0:02:37]} 11... Nb4 {[%clk 0:03:02.4]} 12. Nf1 {[%clk 0:02:18.4]}
12... d5 {[%clk 0:02:53.5]} 13. e5 {[%clk 0:02:13.9]} 13... Bxa4 {[%clk
0:02:24.8]} 14. Qxa4 {[%clk 0:02:13.2]} 14... c5 {[%clk 0:02:16.7]} 15. dxc5
{[%clk 0:02:04.9]} 15... Nd3 {[%clk 0:02:16.9]} 16. Re2 {[%clk 0:02:05]} 16...
Nxc5 {[%clk 0:02:17]} 17. Bxc5 {[%clk 0:01:54.9]} 17... Bxc5 {[%clk 0:02:17.9]}
18. Rd1 {[%clk 0:01:55]} 18... Re8 {[%clk 0:01:58.7]} 19. g3 {[%clk 0:01:52.7]}
19... Ne7 {[%clk 0:01:24.6]} 20. e6 {[%clk 0:01:38.2]} 20... fxe6 {[%clk
0:01:24.9]} 21. Ng5 {[%clk 0:01:38.1]} 21... Nc6 {[%clk 0:01:19.3]} 22. Nxe6
{[%clk 0:01:32]} 22... Qf6 {[%clk 0:01:19.7]} 23. Qg4 {[%clk 0:01:13]} 23... Ne5
{[%clk 0:01:15.7]} 24. Qf4 {[%clk 0:00:37.1]} 24... Rxe6 {[%clk 0:01:11]} 25.
Qxf6 {[%clk 0:00:36.9]} 25... gxf6 {[%clk 0:01:10.3]} 26. Kg2 {[%clk 0:00:37.5]}
26... Rae8 {[%clk 0:01:01]} 27. Rxd5 {[%clk 0:00:36.7]} 27... Bb6 {[%clk
0:01:01.4]} 28. Nd2 {[%clk 0:00:35]} 28... Ng4 {[%clk 0:00:56.6]} 29. Rxe6
{[%clk 0:00:31.9]} 29... Rxe6 {[%clk 0:00:57.5]} 30. Nc4 {[%clk 0:00:32.4]}
30... Bxf2 {[%clk 0:00:54.7]} 31. Rd8+ {[%clk 0:00:21.2]} 31... Kg7 {[%clk
0:00:51.4]} 32. Rd7+ {[%clk 0:00:12.9]} 32... Kg6 {[%clk 0:00:51]} 33. Rxb7
{[%clk 0:00:12.6]} 33... Bc5 {[%clk 0:00:43.9]} 34. b4 {[%clk 0:00:12.3]} 34...
Bd4 {[%clk 0:00:40]} 35. a4 {[%clk 0:00:11.4]} 35... f5 {[%clk 0:00:31.5]} 36.
b5 {[%clk 0:00:10.8]} 36... axb5 {[%clk 0:00:31]} 37. axb5 {[%clk 0:00:08.9]}
37... Re2+ {[%clk 0:00:31.3]} 38. Kf1 {[%clk 0:00:06.9]} 38... Rc2 {[%clk
0:00:29.1]} 39. Rc7 {[%clk 0:00:05.2]} 39... Nxh2+ {[%clk 0:00:28.2]} 40. Ke1
{[%clk 0:00:04.8]} 40... Nf3+ {[%clk 0:00:18.4]} 41. Kd1 {[%clk 0:00:05.2]}
41... Rc3 {[%clk 0:00:19.2]} 42. b6 {[%clk 0:00:04.7]} 42... Bxb6 {[%clk
0:00:11.4]} 43. Rc6+ {[%clk 0:00:05.1]} 43... Kg5 {[%clk 0:00:10.6]} 0-1

[Event "Late-Titled-Tuesday-Blitz-February-20-2024"]
[Site "Chess.com"]
[Date "2024.02.20"]
[Round "10"]
[White "KetiTsatsalashvili"]
[Black "laziestwin"]
[Result "0-1"]
[WhiteElo "2449"]
[BlackElo "2558"]
[TimeControl "180+1"]
[EndTime "15:55:11 PST"]
[Termination "laziestwin won on time"]

1. d4 {[%clk 0:03:00.9]} 1... d6 {[%clk 0:03:00.1]} 2. Nf3 {[%clk 0:03:00.8]}
2... Nf6 {[%clk 0:03:00.5]} 3. c4 {[%clk 0:02:59.4]} 3... g6 {[%clk 0:03:00.9]}
4. Nc3 {[%clk 0:02:59.9]} 4... Bg7 {[%clk 0:03:01.5]} 5. e4 {[%clk 0:03:00.5]}
5... O-O {[%clk 0:03:01.1]} 6. Be2 {[%clk 0:03:00.6]} 6... e5 {[%clk 0:03:00.5]}
7. O-O {[%clk 0:02:59.6]} 7... Nc6 {[%clk 0:02:59.5]} 8. d5 {[%clk 0:02:59.2]}
8... Ne7 {[%clk 0:03:00.1]} 9. Nd2 {[%clk 0:02:59.5]} 9... Ne8 {[%clk
0:02:58.8]} 10. b4 {[%clk 0:02:58.7]} 10... f5 {[%clk 0:02:59.3]} 11. c5 {[%clk
0:02:52.6]} 11... f4 {[%clk 0:02:58.9]} 12. Bg4 {[%clk 0:02:51.4]} 12... h5
{[%clk 0:02:37.8]} 13. Bxc8 {[%clk 0:02:49.5]} 13... Nxc8 {[%clk 0:02:37.6]} 14.
f3 {[%clk 0:02:43]} 14... g5 {[%clk 0:02:35.8]} 15. Nc4 {[%clk 0:02:42.4]} 15...
Kf7 {[%clk 0:02:31.2]} 16. Bb2 {[%clk 0:02:39.8]} 16... Bf6 {[%clk 0:02:31.1]}
17. Rc1 {[%clk 0:02:37.3]} 17... Be7 {[%clk 0:02:29.9]} 18. cxd6 {[%clk
0:02:31.1]} 18... cxd6 {[%clk 0:02:25.4]} 19. Qb3 {[%clk 0:02:17.4]} 19... Bf6
{[%clk 0:01:58.2]} 20. a4 {[%clk 0:02:09.5]} 20... g4 {[%clk 0:01:57.5]} 21. a5
{[%clk 0:02:08.6]} 21... Rg8 {[%clk 0:01:54.7]} 22. Kh1 {[%clk 0:02:03.3]} 22...
Qd7 {[%clk 0:01:46.8]} 23. Qa4 {[%clk 0:01:52.7]} 23... Qe7 {[%clk 0:01:20.8]}
24. a6 {[%clk 0:01:45.3]} 24... Nb6 {[%clk 0:00:59]} 25. Nxb6 {[%clk 0:01:25.7]}
25... axb6 {[%clk 0:00:58.6]} 26. a7 {[%clk 0:01:07.3]} 26... Nc7 {[%clk
0:00:20]} 27. Nb5 {[%clk 0:00:56.4]} 27... Nxb5 {[%clk 0:00:19.9]} 28. Qxb5
{[%clk 0:00:57.3]} 28... Rxa7 {[%clk 0:00:20.5]} 29. Qxb6 {[%clk 0:00:57.6]}
29... Ra6 {[%clk 0:00:21.1]} 30. Qb5 {[%clk 0:00:46.9]} 30... Ra2 {[%clk
0:00:20.4]} 31. Qb6 {[%clk 0:00:39.8]} 31... Rxb2 {[%clk 0:00:12.3]} 32. Rc7
{[%clk 0:00:37.7]} 32... gxf3 {[%clk 0:00:12.9]} 33. Rxe7+ {[%clk 0:00:34.9]}
33... Bxe7 {[%clk 0:00:12.4]} 34. gxf3 {[%clk 0:00:32.1]} 34... Rgg2 {[%clk
0:00:11.7]} 35. Rb1 {[%clk 0:00:13.2]} 35... Rxh2+ {[%clk 0:00:10.4]} 36. Kg1
{[%clk 0:00:13.5]} 36... Rbg2+ {[%clk 0:00:04.9]} 37. Kf1 {[%clk 0:00:13.2]}
37... Rc2 {[%clk 0:00:04.6]} 38. Qg1 {[%clk 0:00:09.1]} 38... Bh4 {[%clk
0:00:01.5]} 39. Ra1 {[%clk 0:00:01.2]} 39... Rhf2+ {[%clk 0:00:02.1]} 0-1

[Event "Late-Titled-Tuesday-Blitz-February-20-2024"]
[Site "Chess.com"]
[Date "2024.02.20"]
[Round "10"]
[White "vanyakuba"]
[Black "noblerone"]
[Result "0-1"]
[WhiteElo "2400"]
[BlackElo "2511"]
[TimeControl "180+1"]
[EndTime "15:55:12 PST"]
[Termination "noblerone won by checkmate"]

1. e4 {[%clk 0:03:00.9]} 1... c5 {[%clk 0:02:56.3]} 2. c3 {[%clk 0:02:50.1]}
2... Nf6 {[%clk 0:02:53.5]} 3. e5 {[%clk 0:02:50.1]} 3... Nd5 {[%clk 0:02:53.7]}
4. g3 {[%clk 0:02:49.3]} 4... e6 {[%clk 0:02:53]} 5. Nf3 {[%clk 0:02:47.2]} 5...
b6 {[%clk 0:02:48.5]} 6. Bg2 {[%clk 0:02:46.9]} 6... Bb7 {[%clk 0:02:49.1]} 7.
O-O {[%clk 0:02:47]} 7... d6 {[%clk 0:02:49.1]} 8. exd6 {[%clk 0:02:46.6]} 8...
Bxd6 {[%clk 0:02:49.9]} 9. d4 {[%clk 0:02:46.7]} 9... c4 {[%clk 0:02:41.5]} 10.
a4 {[%clk 0:02:16.4]} 10... Nd7 {[%clk 0:02:23]} 11. Nbd2 {[%clk 0:02:06.8]}
11... Rc8 {[%clk 0:02:23.2]} 12. Ne4 {[%clk 0:02:03.5]} 12... Be7 {[%clk
0:02:20.4]} 13. Re1 {[%clk 0:02:03.3]} 13... O-O {[%clk 0:02:20]} 14. Ne5 {[%clk
0:01:55.1]} 14... Nxe5 {[%clk 0:02:04]} 15. dxe5 {[%clk 0:01:55.2]} 15... Qc7
{[%clk 0:01:59.7]} 16. Qh5 {[%clk 0:01:25.5]} 16... g6 {[%clk 0:01:34.3]} 17.
Qh6 {[%clk 0:01:19.1]} 17... Qxe5 {[%clk 0:01:23.9]} 18. Bg5 {[%clk 0:01:18.6]}
18... Bxg5 {[%clk 0:01:17.7]} 19. Nxg5 {[%clk 0:01:10.8]} 19... Qg7 {[%clk
0:01:17.5]} 20. Qh3 {[%clk 0:00:46]} 20... Rc7 {[%clk 0:01:12.4]} 21. a5 {[%clk
0:00:27.5]} 21... b5 {[%clk 0:01:09.8]} 22. a6 {[%clk 0:00:27.7]} 22... Bc8
{[%clk 0:00:58.2]} 23. Bxd5 {[%clk 0:00:16.9]} 23... exd5 {[%clk 0:00:55.7]} 24.
Qg2 {[%clk 0:00:15.2]} 24... h6 {[%clk 0:00:48.7]} 25. Nf3 {[%clk 0:00:13.9]}
25... Be6 {[%clk 0:00:42.2]} 26. Nd4 {[%clk 0:00:13.7]} 26... Re8 {[%clk
0:00:35.5]} 27. Nxb5 {[%clk 0:00:13.8]} 27... Rce7 {[%clk 0:00:34.3]} 28. Nd4
{[%clk 0:00:12.4]} 28... Bc8 {[%clk 0:00:29.6]} 29. Rxe7 {[%clk 0:00:12.1]}
29... Rxe7 {[%clk 0:00:30.5]} 30. Qxd5 {[%clk 0:00:12.2]} 30... Qf8 {[%clk
0:00:29.4]} 31. Qxc4 {[%clk 0:00:11.2]} 31... Bh3 {[%clk 0:00:28.5]} 32. Qd3
{[%clk 0:00:08.9]} 32... Qe8 {[%clk 0:00:28.1]} 33. Qd2 {[%clk 0:00:08.4]} 33...
Qa8 {[%clk 0:00:27]} 34. f3 {[%clk 0:00:08.5]} 34... Qe8 {[%clk 0:00:26.7]} 35.
Qf2 {[%clk 0:00:08.4]} 35... Qd7 {[%clk 0:00:25.6]} 36. g4 {[%clk 0:00:08.3]}
36... h5 {[%clk 0:00:25.1]} 37. Qg3 {[%clk 0:00:08.2]} 37... hxg4 {[%clk
0:00:25.4]} 38. fxg4 {[%clk 0:00:08.4]} 38... Bxg4 {[%clk 0:00:26.3]} 39. Re1
{[%clk 0:00:07.7]} 39... Rxe1+ {[%clk 0:00:25.6]} 40. Qxe1 {[%clk 0:00:08.6]}
40... Bh3 {[%clk 0:00:24.9]} 41. Qg3 {[%clk 0:00:08.3]} 41... Kg7 {[%clk
0:00:23]} 42. Qe5+ {[%clk 0:00:08.4]} 42... Kg8 {[%clk 0:00:23]} 43. Qg3 {[%clk
0:00:08.6]} 43... Bg4 {[%clk 0:00:22.1]} 44. Kf2 {[%clk 0:00:07.6]} 44... Bd1
{[%clk 0:00:19.5]} 45. Qe3 {[%clk 0:00:07.1]} 45... Qg4 {[%clk 0:00:16.7]} 46.
Ke1 {[%clk 0:00:06.7]} 46... Ba4 {[%clk 0:00:15.9]} 47. Kd2 {[%clk 0:00:06.8]}
47... Qd1# {[%clk 0:00:15]} 0-1

[Event "Late-Titled-Tuesday-Blitz-February-20-2024"]
[Site "Chess.com"]
[Date "2024.02.20"]
[Round "10"]
[White "Statham_01"]
[Black "HamedWafa4"]
[Result "1-0"]
[WhiteElo "2609"]
[BlackElo "2714"]
[TimeControl "180+1"]
[EndTime "15:55:13 PST"]
[Termination "Statham_01 won on time"]

1. Nc3 {[%clk 0:03:00.9]} 1... c5 {[%clk 0:02:58.4]} 2. e4 {[%clk 0:03:00.8]}
2... Nc6 {[%clk 0:02:57]} 3. Bb5 {[%clk 0:03:01]} 3... Nd4 {[%clk 0:02:57]} 4.
Nf3 {[%clk 0:03:01.5]} 4... a6 {[%clk 0:02:56.6]} 5. Bd3 {[%clk 0:03:01.8]} 5...
g6 {[%clk 0:02:50]} 6. O-O {[%clk 0:03:01.7]} 6... Bg7 {[%clk 0:02:49.8]} 7.
Nxd4 {[%clk 0:03:01.8]} 7... cxd4 {[%clk 0:02:49.8]} 8. Ne2 {[%clk 0:03:02.4]}
8... d6 {[%clk 0:02:46.1]} 9. c3 {[%clk 0:03:02.6]} 9... dxc3 {[%clk 0:02:46.3]}
10. dxc3 {[%clk 0:03:03.5]} 10... Nf6 {[%clk 0:02:46.8]} 11. h3 {[%clk
0:03:03.2]} 11... O-O {[%clk 0:02:47.1]} 12. Be3 {[%clk 0:03:01.4]} 12... Bd7
{[%clk 0:02:43.7]} 13. f4 {[%clk 0:02:54.3]} 13... Bc6 {[%clk 0:02:43.7]} 14.
Ng3 {[%clk 0:02:54.2]} 14... Qc7 {[%clk 0:02:38.2]} 15. Qd2 {[%clk 0:02:47.4]}
15... Rfd8 {[%clk 0:02:30.3]} 16. c4 {[%clk 0:02:24.4]} 16... b5 {[%clk
0:02:23.1]} 17. cxb5 {[%clk 0:02:09.6]} 17... axb5 {[%clk 0:02:21.2]} 18. Rac1
{[%clk 0:02:05]} 18... Qb7 {[%clk 0:02:16.4]} 19. Bd4 {[%clk 0:01:48.4]} 19...
Rxa2 {[%clk 0:02:00.7]} 20. f5 {[%clk 0:01:43.7]} 20... Ra4 {[%clk 0:01:56.7]}
21. b4 {[%clk 0:01:33.6]} 21... Raa8 {[%clk 0:01:40.6]} 22. h4 {[%clk
0:01:24.2]} 22... d5 {[%clk 0:01:36.4]} 23. e5 {[%clk 0:01:13.8]} 23... Ne4
{[%clk 0:01:36.4]} 24. Qe3 {[%clk 0:01:12]} 24... Ra3 {[%clk 0:01:34.4]} 25. e6
{[%clk 0:00:50.3]} 25... fxe6 {[%clk 0:01:23]} 26. Bxg7 {[%clk 0:00:48.4]} 26...
Kxg7 {[%clk 0:01:23.5]} 27. fxe6 {[%clk 0:00:42.3]} 27... Nf6 {[%clk 0:01:15.2]}
28. Qd4 {[%clk 0:00:22.2]} 28... Rd6 {[%clk 0:00:59.6]} 29. h5 {[%clk
0:00:19.7]} 29... Rxe6 {[%clk 0:00:50.5]} 30. hxg6 {[%clk 0:00:18]} 30... hxg6
{[%clk 0:00:51.4]} 31. Bf5 {[%clk 0:00:06.2]} 31... gxf5 {[%clk 0:00:40.3]} 32.
Nxf5+ {[%clk 0:00:07.1]} 32... Kf7 {[%clk 0:00:37.3]} 33. Qh4 {[%clk 0:00:06.8]}
33... Qc8 {[%clk 0:00:20.4]} 34. Nd4 {[%clk 0:00:03.8]} 34... Ke8 {[%clk
0:00:05.4]} 35. Qh8+ {[%clk 0:00:01.6]} 35... Kd7 {[%clk 0:00:05.7]} 36. Qh3
{[%clk 0:00:02]} 1-0